bitfinex-derivatives/quotes_ETHF0:USTF0_20240925
["timestamp","ask_amount","ask_price","bid_price","bid_amount"]
[1727271576176,3.2078,2617.6,2617.0,0.3906]
[1727271576383,0.38207,2617.5,2617.2,0.3821]
[1727271576585,3.2078,2617.6,2617.0,0.3906]
[1727271577289,0.75773,2617.7,2617.4,0.38206]
[1727271578190,0.38204,2617.6,2617.4,0.38206]
[1727271578384,0.75774,2617.7,2617.4,0.38206]
[1727271579361,0.3757,2617.7,2617.5,0.38206]
[1727271579571,0.3757,2617.7,2617.1,7.5440389]
[1727271579572,3.3157,2617.7,2617.1,4.3362389]
[1727271579787,0.38208,2617.4,2617.2,0.76039]
[1727271579990,3.2078,2617.5,2617.2,0.3783]
[1727271580288,0.38209,2617.4,2617.2,0.3821]
[1727271580678,3.2078,2617.5,2617.4,0.38207]
[1727271580887,0.3757,2617.7,2617.3,0.38208]
[1727271581191,0.38206,2617.5,2617.4,0.3774]
[1727271582783,0.38208,2617.4,2617.2,0.38209]
[1727271584288,0.95514,2617.6,2617.2,0.3821]
[1727271584684,0.3821,2617.2,2617.1,1.16191]
[1727271584893,0.38209,2617.3,2617.2,0.3821]
[1727271585085,0.38208,2617.4,2617.2,0.3821]
[1727271585291,0.38208,2617.4,2617.1,0.7798]
[1727271585599,0.38208,2617.4,2617.3,0.38209]
[1727271585788,0.38208,2617.4,2617.2,0.38209]
[1727271586090,4.16297,2617.5,2617.1,1.1619]
[1727271586429,4.16297,2617.5,2617.2,0.3821]
[1727271586430,0.38209,2617.3,2617.2,0.3821]
[1727271586794,0.383,2617.4,2617.1,1.16191]
[1727271586795,0.3821,2617.2,2617.1,1.16191]
[1727271586987,0.3821,2617.3,2617.1,1.16191]
[1727271587193,0.3821,2617.3,2617.2,0.3821]
[1727271587691,0.383,2617.4,2617.1,1.16191]
[1727271588289,0.3821,2617.3,2617.1,0.7798]
[1727271588495,0.3821,2617.3,2617.2,0.3821]
[1727271588689,2.773,2617.4,2617.1,0.7798]
[1727271588891,2.773,2617.4,2617.1,1.16191]
[1727271589192,0.38209,2617.3,2617.1,1.16191]
[1727271589390,0.3821,2617.2,2617.1,1.16191]
[1727271589598,0.3821,2617.3,2617.2,0.3821]
[1727271589795,0.3821,2617.2,2617.1,1.16191]
[1727271590304,2.39,2617.2,2616.9,0.01710227]
[1727271590503,3.72747,2617.0,2616.9,0.01710227]
[1727271595095,2.77213,2617.0,2616.9,0.01710227]
[1727271596070,0.3684,2617.1,2617.0,0.38213]
[1727271596396,3.2078,2617.2,2617.1,0.38212]
[1727271596588,3.2078,2617.2,2617.1,0.78382]
[1727271596998,0.38213,2617.0,2616.9,0.39924227]
[1727271597306,0.38213,2617.1,2616.9,0.39924227]
[1727271597595,0.38213,2617.0,2616.9,0.39924227]
[1727271598100,0.38213,2617.1,2617.0,0.38213]
[1727271598400,0.38211,2617.2,2617.1,0.38212]
[1727271598697,0.38211,2617.2,2617.0,0.38212]
[1727271598998,0.38211,2617.2,2617.1,0.38212]
[1727271599899,0.38209,2617.3,2617.2,0.3821]
[1727271600202,0.38209,2617.3,2616.9,0.01710227]
[1727271600203,2.773,2617.4,2616.9,0.97246227]
[1727271600401,2.773,2617.4,2616.9,0.97245227]
[1727271600599,0.372,2617.5,2617.0,11.69642321]
[1727271600793,2.39,2617.6,2617.0,11.69642321]
[1727271600794,2.77205,2617.6,2617.1,0.9553]
[1727271600993,1.12552,2617.8,2617.3,0.95523]
[1727271601296,1.12552,2617.8,2617.3,0.38209]
[1727271601297,0.38207,2617.5,2617.3,0.38209]
[1727271601499,0.38207,2617.5,2617.1,0.3733]
[1727271601500,3.34516,2617.5,2617.1,0.3733]
[1727271601785,2.3917869,2617.5,2616.9,0.01710227]
[1727271602001,0.38212,2617.1,2617.0,8.21084691]
[1727271602699,2.77211,2617.2,2617.0,8.21084691]
[1727271603302,0.38212,2617.1,2617.0,8.21084691]
[1727271603501,0.38213,2617.0,2616.9,0.01710227]
[1727271603702,2.77213,2617.0,2616.9,0.01710227]
[1727271603920,4.10237,2617.0,2616.9,0.01710227]
[1727271604400,10.31397,2617.0,2616.9,0.01710227]
[1727271604605,7.92397,2617.0,2616.9,0.01710227]
[1727271605505,9.91760412,2617.0,2616.9,0.01710227]
[1727271606010,0.38221,2616.5,2616.2,3.2078]
[1727271606303,2.39,2616.3,2616.2,3.2078]
[1727271606498,2.77223,2616.3,2616.2,3.2078]
[1727271606693,2.77223,2616.3,2616.0,0.772]
[1727271606895,2.77223,2616.3,2615.9,0.01948864]
[1727271606896,0.38228,2616.0,2615.9,0.01948864]
[1727271607291,12.2124,2616.0,2614.9,2.49601726]
[1727271607502,2.39,2615.0,2614.9,0.021875]
[1727271607693,3.2078,2615.6,2614.9,0.021875]
[1727271607894,2.39,2615.0,2614.9,0.021875]
[1727271608107,0.3794,2615.5,2615.0,0.38242]
[1727271608108,2.39,2615.4,2615.0,0.38242]
[1727271608404,2.39,2615.4,2615.1,0.38241]
[1727271608610,2.39,2615.6,2615.2,0.38238]
[1727271608902,2.39,2615.8,2615.4,0.38235]
[1727271609399,2.39,2615.8,2615.4,0.38236]
[1727271609603,2.39,2615.8,2615.5,0.38234]
[1727271609800,2.39,2615.8,2615.3,4.59774582]
[1727271609998,2.39,2615.8,2615.4,8.41660263]
[1727271610397,2.39,2615.8,2615.6,0.38233]
[1727271610706,0.76167,2616.1,2615.4,11.62440263]
[1727271610707,2.39,2616.0,2615.4,11.62440263]
[1727271611006,2.39,2616.0,2615.6,0.38233]
[1727271611206,2.39,2616.0,2615.4,11.62440263]
[1727271611607,2.39,2616.0,2615.7,0.38231]
[1727271611904,2.39,2615.8,2615.5,0.38234]
[1727271612111,2.39,2615.8,2615.3,0.3977]
[1727271612112,2.39,2615.6,2615.3,0.3977]
[1727271612335,3.2078,2615.9,2615.0,0.3743]
[1727271612336,2.39,2615.4,2615.0,0.3743]
[1727271612494,2.39,2615.2,2615.0,1.15122]
[1727271612695,2.39,2615.2,2615.1,7.93335287]
[1727271613401,2.77239,2615.2,2615.0,0.3945]
[1727271613605,0.38242,2615.1,2614.9,0.021875]
[1727271613912,2.39,2615.0,2614.9,0.021875]
[1727271614498,2.77242,2615.0,2614.9,0.021875]
[1727271615403,6.59642,2615.0,2614.9,0.021875]
[1727271615605,5.16249,2615.0,2614.9,0.021875]
[1727271615800,6.98742,2615.0,2614.9,0.021875]
[1727271616796,3.16342,2615.0,2614.9,0.021875]
[1727271617395,0.391,2615.0,2614.9,0.021875]
[1727271618696,5.5978,2615.3,2614.9,0.021875]
[1727271618896,1.14935,2615.5,2615.2,0.38239]
[1727271619098,1.14935,2615.5,2615.1,0.3824]
[1727271619298,3.53935,2615.5,2615.1,0.3824]
[1727271619506,0.767,2615.5,2615.3,0.38237]
[1727271619701,0.3808,2615.5,2615.3,0.38237]
[1727271620205,0.76315,2615.5,2615.2,0.38239]
[1727271620508,3.15315,2615.5,2615.2,0.38239]
[1727271620709,2.39,2615.3,2614.9,0.021875]
[1727271621005,3.2078,2615.3,2614.9,0.021875]
[1727271621208,0.38242,2615.0,2614.9,0.021875]
[1727271622113,0.76712,2615.0,2614.9,0.021875]
[1727271622603,1.16262,2615.0,2614.9,0.021875]
[1727271623002,14.19442,2615.0,2614.9,0.021875]
[1727271623202,15.15049,2615.0,2614.9,0.021875]
[1727271623402,5.32649,2615.0,2614.9,0.021875]
[1727271623608,1.16262,2615.0,2614.9,0.021875]
[1727271624105,3.55262,2615.0,2614.9,0.021875]
[1727271624609,6.76042,2615.0,2614.9,0.021875]
[1727271624815,7.71649,2615.0,2614.9,0.021875]
[1727271625012,18.49656,2615.0,2614.9,0.021875]
[1727271625608,18.49656,2615.0,2614.2,0.78053]
[1727271625609,0.3825,2614.5,2614.2,0.398]
[1727271625802,2.7725,2614.5,2614.2,0.398]
[1727271626002,2.7725,2614.5,2614.2,0.78053]
[1727271626204,5.98028,2614.7,2614.4,0.38251]
[1727271626404,5.5978,2614.7,2614.5,0.38249]
[1727271627004,3.2078,2614.7,2614.6,0.38248]
[1727271627211,2.39,2614.9,2614.6,0.38247]
[1727271627212,0.38244,2614.9,2614.6,0.38247]
[1727271627910,0.38244,2614.9,2614.7,0.38247]
[1727271627911,2.77244,2614.9,2614.7,0.38247]
[1727271628109,4.8892,2615.0,2614.4,5.5978]
[1727271628511,4.8892,2615.0,2614.6,0.38247]
[1727271628815,4.8892,2615.0,2614.5,4.08876914]
[1727271628816,2.39,2614.9,2614.5,0.3875]
[1727271629411,4.8892,2615.0,2614.5,0.7891]
[1727271629720,3.2078,2615.4,2615.1,0.3824]
[1727271630018,4.1324,2615.5,2614.7,3.2078]
[1727271630222,0.3824,2615.2,2615.0,0.38242]
[1727271630403,0.38242,2615.1,2614.9,0.38243]
[1727271630807,5.5978,2615.3,2615.0,0.38241]
[1727271630808,0.3824,2615.2,2615.0,0.38241]
[1727271631001,0.3824,2615.2,2614.8,4.7221303]
[1727271631419,0.38241,2615.1,2615.0,0.38241]
[1727271631603,0.38242,2615.0,2614.8,5.1045703]
[1727271631806,0.38242,2615.0,2614.8,4.7221303]
[1727271632036,0.38242,2615.1,2614.9,4.20643]
[1727271632209,0.38242,2615.1,2614.9,0.38243]
[1727271632410,0.38244,2614.9,2614.8,0.3673]
[1727271632609,2.39,2614.9,2614.5,0.7729]
[1727271632918,0.38248,2614.6,2614.5,0.3854]
[1727271633308,2.39,2614.6,2614.1,0.7934]
[1727271633623,3.2078,2614.4,2614.1,1.16295]
[1727271633813,2.39,2614.3,2613.7,3.2078]
[1727271634009,2.77257,2614.0,2613.7,3.5982]
[1727271634520,2.77257,2614.0,2613.7,0.3904]
[1727271634820,2.39,2614.0,2613.7,0.3904]
[1727271635115,2.77257,2614.0,2613.7,0.3904]
[1727271635713,2.77257,2614.0,2613.5,0.7952]
[1727271635914,2.77257,2614.0,2613.6,0.77302]
[1727271636118,2.77257,2614.0,2613.6,0.3904]
[1727271636516,2.77257,2614.0,2613.6,0.77302]
[1727271636716,2.77257,2614.0,2613.7,0.38261]
[1727271637119,2.39,2614.0,2613.7,0.38261]
[1727271637416,2.39,2614.0,2613.8,0.3826]
[1727271637722,2.77255,2614.2,2613.8,0.3826]
[1727271637911,0.38257,2614.0,2613.6,0.3904]
[1727271638303,0.38256,2614.1,2613.6,0.3904]
[1727271638507,0.78647,2614.0,2613.6,0.77302]
[1727271638718,0.768,2614.0,2613.7,0.3826]
[1727271638908,2.39,2614.2,2613.7,3.2078]
[1727271639219,0.4039,2614.1,2613.7,3.2078]
[1727271639413,2.39,2614.0,2613.5,0.3911]
[1727271639618,9.4234,2614.0,2613.1,0.3989]
[1727271639814,2.39,2613.2,2612.9,0.02664773]
[1727271640023,0.3729,2613.1,2612.9,0.02664773]
[1727271640507,0.38272,2613.0,2612.9,0.02664773]
[1727271640703,0.75561,2613.1,2612.9,0.02664773]
[1727271640903,2.77272,2613.0,2612.9,0.02664773]
[1727271641114,7.55672,2613.0,2612.9,0.02664773]
[1727271641421,7.55672,2613.0,2612.0,1.1431]
[1727271641422,16.9941,2613.0,2612.0,1.15136]
[1727271641625,2.39,2612.1,2611.9,0.02903409]
[1727271641942,2.39,2612.1,2610.8,1.52267808]
[1727271641943,3.2078,2611.7,2610.0,0.2]
[1727271642123,10.6389,2612.0,2610.0,0.2]
[1727271642124,3.2078,2610.5,2610.0,0.2]
[1727271642324,3.2078,2610.2,2610.0,0.0232]
[1727271642530,3.2078,2609.9,2608.7,0.2]
[1727271642793,2.95,2609.1,2608.7,0.2]
[1727271643027,3.59113,2608.9,2608.7,0.2]
[1727271643221,0.9583,2608.9,2607.7,0.51911384]
[1727271643408,2.95,2607.8,2607.1,0.51920783]
[1727271643718,6.1578,2608.4,2607.7,7.06573813]
[1727271643909,0.38346,2607.9,2607.8,3.85793813]
[1727271644108,0.95815,2609.4,2607.2,12.30958331]
[1727271644109,4.16619,2608.7,2607.2,12.30958331]
[1727271644412,3.2078,2608.1,2607.0,0.04096591]
[1727271644618,1.685,2609.2,2607.5,3.2078]
[1727271644619,3.2078,2608.6,2607.5,3.2078]
[1727271644915,3.2078,2609.0,2607.9,3.2078]
[1727271645126,3.2078,2609.0,2608.8,2.05214813]
[1727271645308,3.2078,2609.0,2607.3,3.32]
[1727271645309,1.685,2609.8,2608.9,2.05214813]
[1727271645508,1.685,2609.8,2608.3,3.2078]
[1727271645509,0.089,2609.3,2608.3,3.2078]
[1727271645705,23.4,2609.7,2609.1,2.05214813]
[1727271645915,3.2968,2609.8,2609.3,2.05214813]
[1727271646114,0.089,2609.8,2609.6,2.05214813]
[1727271646310,3.2078,2610.1,2609.5,2.05214813]
[1727271646512,3.32,2610.7,2609.8,2.05214813]
[1727271646513,3.2078,2610.2,2609.8,2.05214813]
[1727271647320,3.2078,2610.2,2609.9,2.05214813]
[1727271648019,3.2078,2610.2,2609.0,0.4043]
[1727271648020,9.2078,2610.2,2609.0,0.4043]
[1727271648224,3.2078,2609.9,2609.4,2.05214813]
[1727271648914,3.2078,2609.8,2609.4,2.05214813]
[1727271649112,3.2078,2609.9,2609.4,2.05214813]
[1727271649542,0.47207,2610.6,2608.9,3.2078]
[1727271649543,3.2078,2609.6,2608.9,3.2078]
[1727271649721,3.2078,2609.6,2609.0,2.05214813]
[1727271649918,3.2078,2609.6,2609.0,9.89634783]
[1727271650221,3.2078,2609.6,2609.1,2.05214813]
[1727271650420,3.2078,2609.6,2609.2,2.05214813]
[1727271650614,3.2078,2609.3,2607.9,4.0002]
[1727271650813,3.2078,2608.9,2608.7,2.05214813]
[1727271651010,3.2078,2609.3,2608.4,7.88063843]
[1727271651214,3.32,2610.0,2609.3,2.05214813]
[1727271651215,3.2078,2609.6,2609.3,2.05214813]
[1727271651920,3.2078,2609.6,2608.5,0.403]
[1727271652124,3.2078,2609.3,2608.9,2.05214813]
[1727271652334,3.2078,2609.3,2609.1,2.05214813]
[1727271652557,3.2078,2609.3,2608.5,0.403]
[1727271652721,0.089,2610.1,2609.2,2.05214813]
[1727271652722,3.2078,2609.6,2609.2,2.05214813]
[1727271652919,3.2078,2609.6,2609.3,2.05214813]
[1727271653314,3.2078,2609.6,2608.6,3.2078]
[1727271653524,3.2078,2609.3,2609.1,2.05214813]
[1727271653723,3.2078,2609.6,2609.3,2.05214813]
[1727271654215,3.32,2610.4,2609.5,2.05214813]
[1727271654216,3.2078,2609.9,2609.5,2.05214813]
[1727271654422,3.2078,2609.9,2609.6,2.05214813]
[1727271654629,3.2078,2609.9,2608.9,3.2078]
[1727271654630,3.2078,2609.9,2609.2,3.2078]
[1727271654927,3.2078,2609.9,2608.9,3.32]
[1727271654928,3.2078,2610.2,2609.8,2.05214813]
[1727271655125,3.2078,2610.2,2609.9,0.78567]
[1727271655317,3.2078,2610.2,2610.1,2.05214813]
[1727271655523,3.2078,2610.5,2610.1,2.43528813]
[1727271655838,3.2078,2610.5,2610.4,2.05214813]
[1727271656030,3.2078,2610.5,2609.9,0.4025]
[1727271656031,9.2078,2610.5,2609.9,0.4025]
[1727271656326,3.2078,2610.2,2609.9,0.4025]
[1727271656528,3.2078,2610.2,2610.1,2.05214813]
[1727271657822,3.2078,2610.2,2609.9,0.4025]
[1727271658033,3.2078,2610.2,2610.1,2.05214813]
[1727271659623,3.2078,2610.2,2610.1,2.43528813]
[1727271659928,3.2078,2610.2,2610.1,2.05214813]
[1727271660252,3.2078,2610.2,2609.1,1.3237]
[1727271660253,3.2078,2610.2,2609.1,3.5733]
[1727271660425,0.38319,2609.8,2609.6,2.05214813]
[1727271660731,3.2078,2609.9,2609.6,2.05214813]
[1727271661330,3.2078,2609.9,2609.6,2.43535813]
[1727271662021,3.2078,2609.9,2609.6,2.05214813]
[1727271662530,3.2078,2609.9,2609.6,2.43535813]
[1727271662733,3.2078,2609.9,2609.7,2.05214813]
[1727271662944,3.2078,2609.9,2609.8,2.05214813]
[1727271663437,3.59097,2609.9,2609.8,2.05214813]
[1727271663701,3.2078,2609.9,2609.8,2.05214813]
[1727271664440,2.6009,2609.9,2609.8,2.43533813]
[1727271664834,2.6009,2609.9,2609.8,2.05214813]
[1727271665134,15.7529,2609.9,2609.1,0.3655]
[1727271665338,3.2078,2609.7,2609.5,2.05214813]
[1727271665635,0.95786,2610.2,2609.6,2.05214813]
[1727271665834,1.769,2610.4,2609.5,2.05214813]
[1727271665835,6.5278,2609.9,2609.5,2.05214813]
[1727271666035,3.59101,2609.6,2609.5,2.05214813]
[1727271666242,0.38327,2609.2,2609.1,0.3655]
[1727271666546,3.2078,2609.6,2609.3,2.05214813]
[1727271666547,0.38325,2609.4,2609.3,2.05214813]
[1727271666841,0.38324,2609.5,2609.3,2.05214813]
[1727271667041,3.2078,2609.6,2609.5,2.05214813]
[1727271667426,3.32,2610.3,2609.7,0.3832]
[1727271667427,3.2078,2609.9,2609.7,0.3832]
[1727271667627,3.2078,2609.9,2609.1,3.5733]
[1727271667628,3.2078,2609.9,2609.8,2.05214813]
[1727271668038,3.2078,2609.9,2609.8,2.43533813]
[1727271668241,3.59091,2610.4,2610.1,0.38314]
[1727271668435,3.59091,2610.4,2610.2,2.05214813]
[1727271668752,0.38311,2610.3,2610.2,2.05214813]
[1727271670635,3.2078,2610.4,2610.2,2.05214813]
[1727271670833,3.59091,2610.4,2610.3,2.05214813]
[1727271671038,3.59091,2610.4,2610.1,2.05214813]
[1727271671039,3.2078,2610.4,2610.1,2.05214813]
[1727271671341,1.34095,2610.2,2610.1,2.05214813]
[1727271671942,1.34095,2610.2,2609.4,0.3662]
[1727271671943,0.38323,2609.5,2609.4,0.3662]
[1727271672145,3.2078,2609.5,2609.4,0.3662]
[1727271672434,0.38321,2609.7,2609.4,2.80157813]
[1727271672541,6.5278,2609.9,2609.7,2.05214813]
[1727271672542,0.38319,2609.8,2609.7,2.05214813]
[1727271674643,0.38319,2609.8,2609.4,0.3662]
[1727271674644,0.95801,2609.7,2609.2,0.3986]
[1727271674834,3.59103,2609.5,2609.4,2.05214813]
[1727271675040,3.59103,2609.5,2608.5,3.5772]
[1727271675041,7.48589,2609.5,2608.5,3.5772]
[1727271675237,0.4026,2610.1,2608.5,3.5772]
[1727271675238,3.2078,2609.1,2608.8,2.05214813]
[1727271675436,0.38336,2608.6,2608.5,0.3694]
[1727271675944,0.38336,2608.6,2608.5,2.42154813]
[1727271676250,3.2078,2609.0,2608.5,2.42154813]
[1727271676544,0.95826,2609.1,2608.6,2.05214813]
[1727271676545,3.59116,2608.7,2608.6,2.05214813]
[1727271676735,3.59116,2608.7,2608.5,2.05214813]
[1727271676736,0.38337,2608.6,2608.5,2.05214813]
[1727271676934,3.2078,2608.7,2608.3,0.3794]
[1727271677145,0.38338,2608.5,2608.4,2.05214813]
[1727271677349,0.38338,2608.5,2607.4,0.3688]
[1727271677539,3.32,2608.4,2608.2,2.05214813]
[1727271677741,1.36082,2609.2,2608.4,2.05214813]
[1727271677742,3.2078,2608.8,2608.4,2.05214813]
[1727271677961,3.2078,2608.8,2607.5,14.02964233]
[1727271677962,3.2078,2608.8,2608.3,0.3834]
[1727271678148,3.2078,2608.8,2608.7,2.05214813]
[1727271678948,3.59109,2609.1,2608.7,2.05214813]
[1727271679145,3.59109,2609.1,2609.0,2.05214813]
[1727271679346,3.2078,2609.1,2609.0,2.05214813]
[1727271681047,1.994,2609.1,2609.0,2.05214813]
[1727271681646,1.35587,2610.1,2609.0,2.05214813]
[1727271681647,3.2078,2609.7,2609.0,2.05214813]
[1727271681840,3.59101,2609.7,2609.6,2.05214813]
[1727271682045,0.38316,2610.0,2609.6,2.05214813]
[1727271682253,0.38316,2610.0,2609.9,2.05214813]
[1727271682645,3.2078,2610.2,2609.9,2.05214813]
[1727271682849,3.59093,2610.2,2610.1,2.05214813]
[1727271683259,0.95774,2610.5,2610.1,2.05214813]
[1727271683260,0.38312,2610.3,2610.1,2.05214813]
[1727271683557,0.38312,2610.3,2609.7,3.2078]
[1727271683558,0.3831,2610.4,2610.2,2.05214813]
[1727271683852,3.2078,2610.5,2610.4,2.05214813]
[1727271684055,3.59088,2610.5,2610.4,2.05214813]
[1727271684644,3.59088,2610.5,2609.7,3.2078]
[1727271684645,3.2078,2610.5,2609.7,3.2078]
[1727271684855,3.32,2610.9,2610.4,2.05214813]
[1727271684856,0.38306,2610.7,2610.4,2.05214813]
[1727271685050,0.38306,2610.7,2610.6,2.05214813]
[1727271685251,3.32,2610.9,2610.6,2.05214813]
[1727271685252,3.59084,2610.8,2610.6,2.05214813]
[1727271685548,3.59084,2610.8,2610.3,3.2078]
[1727271685549,3.2078,2610.8,2610.3,3.2078]
[1727271685750,3.59084,2610.8,2610.7,2.05214813]
[1727271687161,3.59084,2610.8,2610.1,0.3767]
[1727271687162,3.2078,2610.8,2610.1,0.3767]
[1727271687358,0.38312,2610.3,2610.1,0.3767]
[1727271687559,3.2078,2610.5,2610.1,0.3767]
[1727271687560,0.38311,2610.4,2610.1,0.3767]
[1727271687952,0.38311,2610.4,2610.3,2.05214813]
[1727271688241,3.2078,2610.5,2610.3,2.05214813]
[1727271688242,3.59089,2610.5,2610.3,2.05214813]
[1727271688356,3.59089,2610.5,2610.4,2.05214813]
[1727271688860,3.2078,2610.5,2610.4,2.05214813]
[1727271689064,3.59088,2610.5,2610.4,2.05214813]
[1727271690473,3.2078,2610.5,2610.4,2.05214813]
[1727271690658,3.59088,2610.5,2610.4,2.05214813]
[1727271690858,3.59088,2610.5,2609.5,0.3819]
[1727271690859,3.2078,2610.5,2609.7,3.2078]
[1727271691164,4.109,2611.2,2609.3,0.77335]
[1727271691165,3.2078,2609.9,2609.3,0.77335]
[1727271691361,0.38321,2609.7,2609.4,0.49674343]
[1727271691564,0.38321,2609.7,2609.4,0.38324]
[1727271691755,0.3832,2609.7,2609.6,2.05214813]
[1727271691965,1.34121,2609.7,2609.6,2.05214813]
[1727271692560,0.3832,2609.7,2609.6,2.05214813]
[1727271692960,3.2078,2609.9,2609.6,2.05214813]
[1727271693259,0.3832,2609.8,2609.7,2.05214813]
[1727271693461,3.2078,2609.9,2609.7,2.05214813]
[1727271693771,0.38323,2609.5,2609.3,0.3901]
[1727271693961,7.10585,2609.6,2608.6,3.2078]
[1727271694161,4.85572,2610.2,2608.6,0.38335]
[1727271694162,7.10597,2609.3,2608.6,0.38335]
[1727271694466,0.38333,2608.9,2608.6,0.38336]
[1727271694668,0.95819,2609.2,2608.8,2.05214813]
[1727271694857,0.95819,2609.2,2609.1,2.05214813]
[1727271695061,0.38327,2609.2,2609.1,2.05214813]
[1727271695267,3.59107,2609.3,2609.1,2.05214813]
[1727271695568,4.26803,2609.7,2609.2,2.05214813]
[1727271695569,4.16583,2609.7,2609.2,2.05214813]
[1727271695917,4.16583,2609.7,2608.8,0.3795]
[1727271695918,3.2078,2609.7,2608.8,0.3795]
[1727271696064,3.2078,2609.7,2609.5,2.05214813]
[1727271696065,0.38321,2609.6,2609.5,2.05214813]
[1727271696658,1.34125,2609.6,2609.5,2.05214813]
[1727271697667,0.38321,2609.6,2609.5,2.05214813]
[1727271698372,1.34125,2609.6,2609.5,2.05214813]
[1727271698757,3.2078,2609.7,2609.5,2.05214813]
[1727271698758,3.59101,2609.7,2609.5,2.05214813]
[1727271699066,3.2078,2609.7,2609.6,2.05214813]
[1727271699270,3.591,2609.7,2609.6,2.05214813]
[1727271699769,4.09037,2610.6,2609.6,2.05214813]
[1727271699770,3.2078,2610.2,2609.9,0.38317]
[1727271699970,3.59094,2610.2,2610.1,2.05214813]
[1727271700364,0.38312,2610.3,2610.1,2.05214813]
[1727271700557,0.38307,2610.6,2610.5,2.05214813]
[1727271700873,3.2078,2610.7,2610.5,2.05214813]
[1727271701175,3.2078,2610.7,2610.6,2.05214813]
[1727271701556,3.2078,2610.7,2610.6,2.43521813]
[1727271702976,3.59079,2611.2,2610.6,11.25994813]
[1727271703176,3.2078,2611.2,2610.7,0.3764]
[1727271703463,0.38297,2611.3,2611.1,2.05214813]
[1727271703670,3.2078,2611.5,2611.4,2.05214813]
[1727271703671,3.59074,2611.5,2611.4,2.05214813]
[1727271704471,3.2078,2611.5,2611.4,2.05214813]
[1727271704764,3.2078,2611.5,2611.4,2.43509813]
[1727271704964,4.26699,2612.5,2611.4,8.05214813]
[1727271704965,0.95702,2612.4,2611.4,8.05214813]
[1727271705171,0.3908,2612.7,2612.4,2.05214813]
[1727271705172,0.95694,2612.7,2612.4,2.05214813]
[1727271705366,0.95694,2612.7,2611.9,0.38287]
[1727271705367,0.38283,2612.3,2611.9,0.38287]
[1727271705663,0.95694,2612.7,2611.8,3.2078]
[1727271705664,0.38281,2612.4,2611.8,3.2078]
[1727271705874,0.38276,2612.8,2612.6,2.05214813]
[1727271706168,3.2078,2613.1,2612.7,2.05214813]
[1727271706366,3.59051,2613.1,2613.0,2.05214813]
[1727271706559,0.9568,2613.0,2612.9,2.05214813]
[1727271706793,1.33952,2613.0,2612.9,2.05214813]
[1727271707062,0.38272,2613.0,2612.9,2.05214813]
[1727271708670,0.38272,2613.0,2612.1,0.38284]
[1727271708671,0.9569,2612.8,2612.0,0.38286]
[1727271708861,1.33967,2612.7,2612.6,1.25566813]
[1727271709062,1.33967,2612.7,2611.6,3.2078]
[1727271709063,3.2078,2612.7,2611.5,3.2078]
[1727271709262,5.5902,2612.9,2611.3,0.3716]
[1727271709263,1.34001,2612.1,2612.0,0.15295813]
[1727271709678,24.74001,2612.1,2612.0,0.15295813]
[1727271709877,0.38285,2612.1,2612.0,0.15295813]
[1727271710170,3.59065,2612.1,2612.0,0.15295813]
[1727271710480,3.59065,2612.1,2611.1,3.2078]
[1727271710481,13.0366,2612.1,2611.1,3.2078]
[1727271710673,4.54803,2611.6,2611.5,0.15295813]
[1727271710907,4.54803,2611.6,2611.0,0.395]
[1727271710908,0.38297,2611.3,2611.2,0.15295813]
[1727271711171,1.34029,2611.5,2611.4,0.15295813]
[1727271711676,0.38294,2611.5,2611.4,0.15295813]
[1727271711972,0.95743,2611.3,2610.6,3.2078]
[1727271712278,3.59077,2611.3,2611.2,0.15295813]
[1727271712483,0.95746,2611.2,2610.8,0.15295813]
[1727271712675,0.38302,2610.9,2610.8,0.15295813]
[1727271712971,0.38308,2610.6,2610.4,0.385]
[1727271713177,0.38302,2610.9,2610.8,0.15295813]
[1727271713967,3.2078,2611.1,2610.1,0.4002]
[1727271714172,3.2078,2611.1,2609.8,3.2078]
[1727271714173,0.38313,2610.2,2609.8,3.2078]
[1727271714364,4.16552,2610.5,2609.8,3.2078]
[1727271714681,0.3831,2610.4,2609.8,3.2078]
[1727271714969,3.2078,2610.5,2609.8,3.2078]
[1727271714970,0.95779,2610.3,2609.8,3.2078]
[1727271715170,4.5487,2610.3,2610.2,0.15295813]
[1727271715768,3.59091,2610.3,2610.2,0.15295813]
[1727271715967,0.95787,2610.1,2609.4,3.2078]
[1727271716172,0.3832,2609.7,2609.4,3.2078]
[1727271716371,0.9579,2610.0,2609.9,0.15295813]
[1727271716575,1.34106,2610.0,2609.9,0.15295813]
[1727271717673,0.38316,2610.0,2609.9,0.15295813]
[1727271717873,1.34106,2610.0,2609.9,0.15295813]
[1727271718080,0.38316,2610.0,2609.9,0.15295813]
[1727271718518,0.38315,2610.1,2609.9,0.15295813]
[1727271718679,0.38313,2610.2,2610.1,0.15295813]
[1727271720384,0.38313,2610.2,2609.2,0.3738]
[1727271720385,9.59093,2610.2,2609.4,3.2078]
[1727271720579,1.836,2610.8,2608.6,3.5862]
[1727271720580,3.2078,2609.6,2608.6,3.5862]
[1727271720887,0.95815,2609.3,2608.6,3.5862]
[1727271721342,0.38328,2609.2,2608.8,0.38333]
[1727271721470,3.2078,2609.4,2608.6,3.5862]
[1727271721586,0.38326,2609.4,2609.0,0.3833]
[1727271721770,0.38324,2609.5,2608.9,3.2078]
[1727271721969,0.38324,2609.5,2609.1,0.38328]
[1727271722275,0.3833,2609.0,2608.9,3.2078]
[1727271722480,0.3833,2609.1,2608.9,3.8328]
[1727271722676,3.2078,2609.2,2608.4,3.2078]
[1727271722998,3.2078,2609.2,2608.0,3.2078]
[1727271722999,0.95837,2608.7,2608.0,3.2078]
[1727271723179,3.2078,2608.9,2608.0,3.2078]